Cogmind - Beta 15 @@@ ROGUE MODE // 2025.08.07 @ 07:49:17 Player: SnailSD Result: Destroyed by G-47 Trooper with Particle Gun Performance ------------- Evolutions (2) 1000 Regions Visited (7) 1400 Robots Destroyed (65) 325 Value Destroyed (1429) 1429 Prototype IDs (24) 480 Alien Tech Used (0) 0 Bonus (349) 349 TOTAL SCORE: 4983 Bonus ------- Follower Combat Kills 49 Aligned with FarCom 300 Cogmind --------- Core Integrity 0/550 Matter 30/300 Energy 100/100 System Corruption 0% Temperature Cool (36) Movement Core (400) Ox7 Location -8/Materials Parts ------- > --- POWER (1) -------- (None) > --- PROPULSION (3) --- (None) > --- UTILITY (5) ------ Large Storage Unit Signal Interpreter Targeting Computer Hacking Suite Hacking Suite > --- WEAPON (2) ------- Heavy Flail > --- INVENTORY (15) --- Improved Heat Sink Large Storage Unit Large Storage Unit Medium Matter Pod (100) Light Armor Plating Skeleton Box Peak State ------------ > --- POWER ------------ Improved Ion Engine > --- PROPULSION ------- Light Treads Light Treads Carbon-fiber Leg > --- UTILITY ---------- Large Storage Unit Signal Interpreter Hacking Suite Hacking Suite > --- WEAPON ----------- Ion Cannon Shotgun > --- INVENTORY -------- Improved Heat Sink Large Storage Unit Large Storage Unit Medium Matter Pod Light Armor Plating Skeleton Box Rocket Launcher Heavy Flail [Rating: 21] Favorites ----------- Power Ion Engine Engine Ion Engine Propulsion Light Treads Treads Light Treads Leg Aluminum Leg Utility Signal Interpreter Device Improved Heat Sink Storage Small Storage Unit Processor Signal Interpreter Hackware Hacking Suite Weapon Medium Laser Energy Gun Medium Laser Energy Cannon Beam Cannon Ballistic Gun Shotgun Launcher Grenade Launcher Impact Weapon Heavy Flail Build | -11 -10 -10 -9 -9 -9 -8 -8 ------- Run | Yrd Mat Min Mat Min Exi Min Mat Slots Evolved 4 | . . . 2 . . . 2 Power . | . . . . . . . . Propulsion 1 | . . . 1 . . . . Utility 3 | . . . 1 . . . 2 Weapon . | . . . . . . . . Parts Attached 44 | 6 7 3 14 . 2 . 12 Power 5 | 1 1 1 1 . . . 1 Engine 5 | 1 1 1 1 . . . 1 Core . | . . . . . . . . Reactor . | . . . . . . . . Propulsion 13 | 2 2 . 6 . . . 3 Treads 9 | 2 . . 5 . . . 2 Leg 4 | . 2 . 1 . . . 1 Wheel . | . . . . . . . . Hover . | . . . . . . . . Flight . | . . . . . . . . Utility 9 | 1 1 1 2 . 2 . 2 Device 2 | . 1 1 . . . . . Storage 3 | 1 . . . . 2 . . Processor 2 | . . . 1 . . . 1 Hackware 2 | . . . 1 . . . 1 Protection . | . . . . . . . . Artifact . | . . . . . . . . Weapon 17 | 2 3 1 5 . . . 6 Energy Gun 8 | 1 2 1 3 . . . 1 Energy Cannon 2 | . . . 1 . . . 1 Ballistic Gun 4 | 1 . . 1 . . . 2 Ballistic Cannon . | . . . . . . . . Launcher 2 | . 1 . . . . . 1 Special Weapon . | . . . . . . . . Impact Weapon 1 | . . . . . . . 1 Slashing Weapon . | . . . . . . . . Piercing Weapon . | . . . . . . . . Special Melee Weapon . | . . . . . . . . Unidentified Prototypes 1 | . . . . . . . 1 Parts Lost 22 | . 5 . 3 . . . 14 Power 4 | . 1 . 1 . . . 2 Propulsion 9 | . 2 . 1 . . . 6 Utility . | . . . . . . . . Weapon 9 | . 2 . 1 . . . 6 Highest Loss Streak 5 | . 5 . 2 . . . 5 To Critical Strikes 1 | . . . . . . . 1 Average Backups 8 | 4 7 7 7 8 9 10 9 Power 1 | . 1 1 1 1 1 1 . Propulsion . | 2 3 2 . . . . . Utility 3 | . 1 2 3 4 4 5 5 Weapon 2 | . 1 2 2 3 3 3 2 Tool/Special . | . . . . . . . . Unused Backups 11 | . 1 . 3 . 1 . 6 Power 1 | . . . 1 . . . . Propulsion 2 | . 1 . 1 . . . . Utility 6 | . . . 1 . 1 . 4 Weapon 1 | . . . . . . . 1 Tool/Special 1 | . . . . . . . 1 Average Slot Usage (%) 86 | . 80 92 98 100 79 100 70 Engine 10 | . 12 14 11 11 11 11 4 Treads 23 | . 17 . 19 33 33 33 16 Leg 6 | . 8 28 12 . . . 2 Device 4 | . 4 14 10 . . . . Storage 11 | . 14 14 11 11 11 11 9 Processor 7 | . . . 7 11 11 11 10 Hackware 7 | . . . 3 11 11 11 13 Energy Gun 9 | . 18 21 14 11 1 11 . Energy Cannon 2 | . . . 6 . . . 5 Ballistic Gun 3 | . 3 . . 11 1 11 7 Peak Build Rating 21 | 6 7 11 15 14 15 15 21 Average Rating 11 | 5 5 8 14 14 11 15 15 On Entrance 10 | . 6 6 11 14 14 15 15 Naked Turns . | . . . . . . . . Heaviest Build 36 | 13 14 16 20 15 30 30 36 Greatest Support 63 | 40 40 20 63 63 63 63 63 Greatest Overweight (x) 7 | . 2 . . . . . 7 Average Overweight (x) . | . . . . . . . . Largest Inventory Capacity 15 | 8 8 8 8 8 15 15 15 Average Capacity 10 | 7 8 8 8 8 10 15 15 Most Carried 12 | 7 8 8 8 8 11 10 12 Average Carried 8 | 4 7 7 7 8 9 10 9 Final Capacity 15 | 8 8 8 8 8 15 15 15 Final Carried 10 | 7 7 8 8 8 10 10 6 Class Distribution -------------------- 70% | Mutant 20% | Scavenger-Mutant 8% | Hacker-Mutant Dominant Class ---------------- Mutant | -10/Materials Scavenger-Mutant | -10/Mines Scavenger-Mutant | -9/Materials Mutant | -9/Mines Mutant | -9/Exiles Mutant | -8/Mines Hacker-Mutant | -8/Materials Resources | -11 -10 -10 -9 -9 -9 -8 -8 ----------- Run | Yrd Mat Min Mat Min Exi Min Mat Matter Collected 802 | 341 76 30 203 . 50 . 102 Remotely . | . . . . . . . . Salvage Created 2010 | 132 470 13 847 . . . 548 Parts 115 | 7 21 . 56 . . . 31 Haulers Intercepted 6 | . 1 . 3 . . . 2 Recyclers Shooed 2 | . 2 . . . . . . Parts Field Recycled . | . . . . . . . . Retrieved Matter . | . . . . . . . . Parts Self-Destructed . | . . . . . . . . Prevented . | . . . . . . . . Kills | -11 -10 -10 -9 -9 -9 -8 -8 ------- Run | Yrd Mat Min Mat Min Exi Min Mat Combat Hostiles Destroyed 45 | . 7 1 24 . . . 13 Melee 1 | . . . . . . . 1 Guns 16 | . 4 1 10 . . . 1 Cannons 13 | . . . 8 . . . 5 AOE 14 | . 3 . 6 . . . 5 Classes Destroyed 11 | 3 3 1 2 . . . 2 Worker 5 | 1 2 . 2 . . . . Builder 2 | . . . . . . . 2 Tunneler 1 | 1 . . . . . . . Hauler 6 | . 1 . 3 . . . 2 Recycler 3 | 1 1 . 1 . . . . Operator 3 | . 2 . 1 . . . . Swarmer 18 | . . 1 13 . . . 4 Grunt 18 | . 7 . 6 . . . 5 Brawler 1 | . . . 1 . . . . Sentry 7 | . . . 4 . . . 3 Hunter 1 | . . . . . . . 1 Best Kill Streak 6 | 2 6 1 6 . . . 4 Combat Bots Only 5 | . 4 1 5 . . . 3 Max Kills in Single Turn 3 | 1 3 1 3 . . . 3 Gunslinging . | . . . . . . . . Exploded 2 | . 2 . 2 . . . 2 Melee 1 | . . . . . . . 1 Uniques/NPCs Destroyed . | . . . . . . . . Combat | -11 -10 -10 -9 -9 -9 -8 -8 -------- Run | Yrd Mat Min Mat Min Exi Min Mat Hostile Shots Fired 342 | . 62 3 134 . . . 143 Missed 93 | . 17 1 41 . . . 34 Hits 249 | . 45 2 93 . . . 109 Melee 2 | . . . 2 . . . . Projectile 247 | . 45 2 91 . . . 109 Critical Strikes 5 | . . . . . . . 5 Damage Taken 3295 | . 609 14 948 . . . 1724 Core 779 | . 81 8 133 . . . 557 Absorbed by Shields . | . . . . . . . . Core Remaining (%) 76 | 100 . 64 . . . 66 . Volleys Fired 198 | 10 49 3 76 . . . 60 Largest 2 | 2 2 1 2 . . . 2 Hottest 125 | 60 90 50 125 . . . 83 Shots Fired 321 | 20 64 3 139 . . . 95 Gun 220 | 20 62 3 89 . . . 46 Cannon 89 | . . . 46 . . . 43 Launcher 12 | . 2 . 4 . . . 6 Special . | . . . . . . . . Kinetic 56 | 10 . . . . . . 46 Thermal 198 | . 32 3 120 . . . 43 Explosive 12 | . 2 . 4 . . . 6 Electromagnetic 55 | 10 30 . 15 . . . . Robot Hit Streak 20 | 3 5 1 20 . . . 13 Robot Miss Streak 5 | 4 4 2 5 . . . 5 Penetration Max . | . . . . . . . . Secondary Targets . | . . . . . . . . Shots Hit Robots 196 | 10 37 1 86 . . . 62 Core Hits 100 | 6 22 2 40 . . . 30 Critical Kills 1 | . . . 1 . . . . Critical Parts Destroyed 1 | . . . . . . . 1 Critical Strikes 4 | . 1 . 2 . . . 1 Burn 1 | . . . 1 . . . . Meltdown 1 | . . . 1 . . . . Corrupt 1 | . 1 . . . . . . Smash 1 | . . . . . . . 1 Melee Attacks 9 | . . . . . . . 9 Impact 9 | . . . . . . . 9 Slashing . | . . . . . . . . Piercing . | . . . . . . . . Sneak Attacks . | . . . . . . . . Combat Hostiles . | . . . . . . . . Follow-up Attacks . | . . . . . . . . Damage Inflicted 4251 | 111 879 25 1700 . . . 1536 Guns 1662 | 111 493 25 732 . . . 301 Cannons 1150 | . . . 535 . . . 615 Explosions 1227 | . 376 . 433 . . . 418 Melee 202 | . . . . . . . 202 Ramming 10 | . 10 . . . . . . Kinetic 347 | 46 . . . . . . 301 Thermal 2193 | . 389 25 1164 . . . 615 Explosive 1078 | . 227 . 433 . . . 418 Electromagnetic 421 | 65 253 . 103 . . . . Impact 202 | . . . . . . . 202 Slashing . | . . . . . . . . Piercing . | . . . . . . . . Highest Corruption 3 | . . . 3 3 3 3 . Average Corruption 2 | . . . 2 3 3 3 . Corruption Purged . | . . . . . . . . Corruption Blocked . | . . . . . . . . Effects 41 | . . . 13 2 21 5 . Message Errors 8 | . . . 4 . 3 1 . Matter Fused 12 | . . . 4 . 7 1 . Heat Flow Errors 7 | . . . 2 . 5 . . Energy Discharges 7 | . . . 2 1 4 . . Parts Rejected 1 | . . . 1 . . . . Data Loss (minor) 3 | . . . . . 1 2 . Data Loss (major) 2 | . . . . 1 1 . . Alerts 1 | . . . . . . 1 . Overload Shots . | . . . . . . . . Overflow Damage 115 | . 9 . 11 . . . 95 Projectiles 11 | . . . 11 . . . . Explosions 23 | . 9 . . . . . 14 Melee 81 | . . . . . . . 81 Knockbacks . | . . . . . . . . Impact . | . . . . . . . . Kinetic . | . . . . . . . . Secondary . | . . . . . . . . Self-Inflicted Damage 180 | . 69 . 52 . . . 59 Shots 8 | . 3 . 2 . . . 3 Rammed 2 | . 2 . . . . . . Targets Rammed 2 | . 2 . . . . . . Kicked . | . . . . . . . . Crushed . | . . . . . . . . Highest Temperature 341 | 40 174 . 341 . 254 . 237 Average Temperature 71 | 17 88 . 71 . 97 . 58 Received Heat Transfer 1182 | . 306 . 93 . . . 783 Effects 1 | . . . 1 . . . . Energy Bleed 1 | . . . 1 . . . . Siege Activations . | . . . . . . . . Martial Activations . | . . . . . . . . Shielding Activations . | . . . . . . . . Robots Disrupted . | . . . . . . . . Combat Hostiles . | . . . . . . . . Robots Corrupted 1 | . . . . . . . 1 Combat Hostiles 1 | . . . . . . . 1 Parts Fried 2 | . 1 . 1 . . . . Impact Corruptions 3 | . . . . . . . 3 Robots Melted 1 | . . . 1 . . . . Combat Hostiles . | . . . . . . . . Parts Melted 8 | . . . 3 . . . 5 Heat Transferred 4804 | . 903 74 2828 . . . 999 Parts Sabotaged . | . . . . . . . . Parts Stolen . | . . . . . . . . Parts Stripped . | . . . . . . . . Power Chain Reactions 2 | . 2 . . . . . . Alert | -11 -10 -10 -9 -9 -9 -8 -8 ------- Run | Yrd Mat Min Mat Min Exi Min Mat Maximum Alert Level 1 | . . . 1 . . . . Low Security (%) 89 | 100 100 100 69 100 . 100 100 Level 1 10 | . . . 30 . . . . Level 2 . | . . . . . . . . Level 3 . | . . . . . . . . Level 4 . | . . . . . . . . Level 5 . | . . . . . . . . High Security . | . . . . . . . . Max Security . | . . . . . . . . Peak Influence 387 | 5 100 65 387 145 . . 157 Initial 145 | . . 10 9 145 . . . Average 68 | 1 36 25 117 135 . . 74 Influence Increases 1567 | 15 256 108 745 . . . 443 Destroy 0b10 Robot/C 960 | . 140 80 480 . . . 260 Destroy 0b10 Robot/NC 100 | 15 30 . 35 . . . 20 Destroy Leader 232 | . 42 20 106 . . . 64 Allied During Kill 8 | . . 8 . . . . . Successful Hack 44 | . 16 . 18 . . . 10 Disable Machine 75 | . 15 . 30 . . . 30 Destroy Structure 88 | . 13 . 31 . . . 44 Partial Spotted 15 | . . . 15 . . . . Lose Combat Pursuer 45 | . . . 30 . . . 15 Influence Decreases 1472 | 15 228 111 395 250 125 . 348 Entered New Map 389 | . . 18 16 230 125 . . Time Decay 837 | 15 190 50 349 20 . . 213 Lost Part 203 | . 38 . 30 . . . 135 Lost Ally 43 | . . 43 . . . . . Squads Dispatched 10 | . 4 . 2 . . . 4 Investigation 4 | . 2 . 1 . . . 1 Extermination . | . . . . . . . . Reinforcement 4 | . 2 . 1 . . . 1 Assault . | . . . . . . . . Garrison 2 | . . . . . . . 2 Intercept . | . . . . . . . . Searches Triggered . | . . . . . . . . Construction Impeded . | . . . . . . . . Haulers Reinforced . | . . . . . . . . Active Scanning Responses . | . . . . . . . . Cargo Convoy Interrupts . | . . . . . . . . Stealth | -11 -10 -10 -9 -9 -9 -8 -8 --------- Run | Yrd Mat Min Mat Min Exi Min Mat Distress Signals 6 | . 2 . 1 . . . 3 Communications Jammed . | . . . . . . . . Distress Signals . | . . . . . . . . Times Spotted 74 | . 11 3 34 . . 2 24 Peak Tracking Total 5 | . 5 3 5 . . 2 5 Tactical Retreats 2 | . . . 1 . . . 1 Traps | -11 -10 -10 -9 -9 -9 -8 -8 ------- Run | Yrd Mat Min Mat Min Exi Min Mat Traps Triggered 3 | . 2 . 1 . . . . Indirectly . | . . . . . . . . Trap Hack Attempts . | . . . . . . . . Triggered . | . . . . . . . . Disarmed . | . . . . . . . . Reprogrammed . | . . . . . . . . Reused . | . . . . . . . . Traps Extracted . | . . . . . . . . Installed . | . . . . . . . . Triggered . | . . . . . . . . Machines | -11 -10 -10 -9 -9 -9 -8 -8 ---------- Run | Yrd Mat Min Mat Min Exi Min Mat Machines Disabled 5 | . 1 . 2 . . . 2 Max in Single Turn 1 | . 1 . 1 . . . 1 Machines Repaired . | . . . . . . . . Machines Dismantled . | . . . . . . . . Machines Sabotaged . | . . . . . . . . Overloaded Fab Kills . | . . . . . . . . Hacking | -11 -10 -10 -9 -9 -9 -8 -8 --------- Run | Yrd Mat Min Mat Min Exi Min Mat Machines Accessed 11 | . 1 . 3 . 5 . 2 Terminals 5 | . 1 . 2 . . . 2 Fabricators . | . . . . . . . . Repair Stations . | . . . . . . . . Recycling Units . | . . . . . . . . Scanalyzers 1 | . . . 1 . . . . Garrison Access . | . . . . . . . . Total Hacks 47 | . 1 . 5 . 34 . 7 Successful 40 | . 1 . 3 . 34 . 2 Failed 7 | . . . 2 . . . 5 Catastrophic 2 | . . . . . . . 2 Database Lockouts . | . . . . . . . . Manual 11 | . 1 . 2 . 1 . 7 Terminals 10 | . 1 . 2 . . . 7 Fabricators . | . . . . . . . . Repair Stations . | . . . . . . . . Recycling Units . | . . . . . . . . Scanalyzers 3 | . . . 3 . . . . Garrison Access . | . . . . . . . . Terminal Hacks 36 | . . . 1 . 34 . 1 Record 33 | . . . . . 33 . . Scanalyzer Index 2 | . . . 1 . . . 1 Proto ID Catalog 1 | . . . . . 1 . . Fabricator Hacks . | . . . . . . . . Repair Station Hacks . | . . . . . . . . Recycling Unit Hacks . | . . . . . . . . Scanalyzer 1 | . . . 1 . . . . Insert Component 1 | . . . 1 . . . . Garrison Access Hacks . | . . . . . . . . Unauthorized Hacks 3 | . 1 . 1 . . . 1 Terminals 3 | . 1 . 1 . . . 1 Operators 3 | . 1 . 1 . . . 1 Fabricators . | . . . . . . . . Repair Stations . | . . . . . . . . Recycling Units . | . . . . . . . . Scanalyzers . | . . . . . . . . Garrison Access . | . . . . . . . . Data Cores Recovered . | . . . . . . . . Used . | . . . . . . . . Hacking Detections 5 | . 1 . 2 . . . 2 Full Trace Events 2 | . . . 1 . . . 1 Feedback Events 1 | . . . 1 . . . . Corruption 1 | . . . 1 . . . . Feedback Blocked . | . . . . . . . . Robot Schematics Acquired . | . . . . . . . . Robots Built . | . . . . . . . . Authchips . | . . . . . . . . Time . | . . . . . . . . Total Robot Build Rating . | . . . . . . . . Part Schematics Acquired . | . . . . . . . . Parts Built . | . . . . . . . . Authchips . | . . . . . . . . Time . | . . . . . . . . Total Part Build Rating . | . . . . . . . . Parts Repaired . | . . . . . . . . Time . | . . . . . . . . Parts Recycled . | . . . . . . . . Recycled Matter . | . . . . . . . . Retrieved Matter . | . . . . . . . . Retrieved Components . | . . . . . . . . Parts Scanalyzed 1 | . . . 1 . . . . Part Schematics Acquired . | . . . . . . . . Parts Damaged . | . . . . . . . . Bothacking | -11 -10 -10 -9 -9 -9 -8 -8 ------------ Run | Yrd Mat Min Mat Min Exi Min Mat Used RIF Installer . | . . . . . . . . Robots Hacked . | . . . . . . . . Non-combat . | . . . . . . . . Combat . | . . . . . . . . Robot Hacks Applied . | . . . . . . . . Relay Couplers Released . | . . . . . . . . Fabnet Peak Effective % . | . . . . . . . . Robots Rewired . | . . . . . . . . Allies Hacked . | . . . . . . . . Hacks Repelled . | . . . . . . . . Allies | -11 -10 -10 -9 -9 -9 -8 -8 -------- Run | Yrd Mat Min Mat Min Exi Min Mat Total Allies 3 | . . 3 . . . . . Largest Group 3 | . . 3 . . . . . Highest-Rated Group 40 | . . 40 . . . . . Highest-Rated Ally 16 | . . 16 . . . . . Total Orders . | . . . . . . . . Ally Attacks 14 | . . 14 . . . . . Total Damage 121 | . . 121 . . . . . Kills 3 | . . 3 . . . . . Allies Corrupted . | . . . . . . . . Allies Melted . | . . . . . . . . Intel | -11 -10 -10 -9 -9 -9 -8 -8 ------- Run | Yrd Mat Min Mat Min Exi Min Mat Active Infowar (turns) . | . . . . . . . . Robot Analysis Total . | . . . . . . . . Derelict Logs Recovered 2 | . . . . 2 . . . Drone Launches . | . . . . . . . . Drone Recoveries . | . . . . . . . . Exploration | -11 -10 -10 -9 -9 -9 -8 -8 ------------- Run | Yrd Mat Min Mat Min Exi Min Mat Turns Passed 3702 | 188 544 108 980 56 964 282 580 Spaces Moved 1943 | 97 287 76 490 36 596 174 187 Core 33 | 10 5 . . . . . 18 Treads 1512 | 87 168 . 304 36 596 174 147 Legs 398 | . 114 76 186 . . . 22 Wheels . | . . . . . . . . Hover . | . . . . . . . . Flight . | . . . . . . . . Fastest Speed 50 | 50 120 120 120 160 160 160 160 Average Speed 155 | 148 143 120 144 160 160 160 199 Slowest Speed 400 | 160 160 120 160 160 160 160 400 Overloaded Moves . | . . . . . . . . Propulsion Burnouts . | . . . . . . . . Robots Hopped . | . . . . . . . . Potential Cave-ins . | . . . . . . . . Cave-ins Triggered . | . . . . . . . . Exploration Rate (%) 36 | 5 52 19 45 10 89 57 16 Regions Visited 7 Branch Regions 4 Pre-discovered Areas 2 | . . . . 1 1 . . Known Exits Taken 4 | . . . 1 1 1 1 . Unknown Exits Taken 3 | 1 1 1 . . . . . Scrap Searched . | . . . . . . . . Spaces Dug 9 | . . . . . . . 9 Terrain Destroyed 101 | . 13 . 27 . . . 61 Melee . | . . . . . . . . Projectile 8 | . . . . . . . 8 AOE 93 | . 13 . 27 . . . 53 Terrain Rammed . | . . . . . . . . Walls Destroyed . | . . . . . . . . Machines Disabled . | . . . . . . . . Actions | -11 -10 -10 -9 -9 -9 -8 -8 --------- Run | Yrd Mat Min Mat Min Exi Min Mat Total 2291 | 120 352 89 621 35 608 178 288 Wait 35 | 1 2 7 13 . 1 5 6 Move 1936 | 96 286 75 489 35 595 173 187 Hop . | . . . . . . . . Pick Up 26 | 7 3 . 9 . 3 . 4 Fast Attach 28 | 6 4 1 8 . 2 . 7 Attach 14 | . 3 . 4 . . . 7 Detach 2 | . 1 . 1 . . . . Swap 16 | . . 2 8 . 2 . 4 Drop 25 | . 2 1 13 . 5 . 4 Fire 198 | 10 49 3 76 . . . 60 Melee 9 | . . . . . . . 9 Ram . | . . . . . . . . Kick . | . . . . . . . . Crush 2 | . 2 . . . . . . Escape Stasis . | . . . . . . . . Rewire . | . . . . . . . . Trap . | . . . . . . . . Miscellaneous . | . . . . . . . . Route ------- -11/Scrapyard -10/Materials (discovered 4 exits: *Mat x2 / [*Min] / [*Sub]) -10/Mines -9/Materials (discovered 3 exits: *Mat x2 / *Min) -9/Mines -9/Exiles (discovered 2 exits: *Min x2) -8/Mines -8/Materials History --------- Turn | Location | Event 10 | -11/Scrapyard | Discovered new exit (range 15) 189 | -11/Scrapyard | Entered Materials 190 | -10/Materials | Met a group of wandering Federalists 275 | -10/Materials | Discovered new exit (range 16) 304 | -10/Materials | Build established: Mutant 370 | -10/Materials | Discovered new exit (range 13) 564 | -10/Materials | Lost 5 parts (1p2n2w) 598 | -10/Materials | Discovered new exit (range 8) 606 | -10/Materials | Discovered new exit (range 10) 733 | -10/Materials | Entered Mines 736 | -10/Mines | Assisted by bots powering up and referring to "LRC-V3" 834 | -10/Mines | Discovered new exit (range 7) 841 | -10/Mines | Entered Materials 841 | -9/Materials | Evolved 2 slots: Propulsion x1, Utility x1 1078 | -9/Materials | Build established: Scavenger-Mutant 1194 | -9/Materials | Discovered new exit (range 15) 1476 | -9/Materials | Discovered new exit (range 7) 1659 | -9/Materials | Identified exit to Materials 1766 | -9/Materials | Discovered new exit (range 7) 1799 | -9/Materials | Identified exit to Mines 1821 | -9/Materials | Entered Mines 1844 | -9/Mines | Learned Materials emergency access door positions 1871 | -9/Mines | Deemed a non-threat by the Exiles lab entrance 1871 | -9/Mines | Discovered new exit (range 5) 1876 | -9/Mines | Identified exit to Exiles 1877 | -9/Mines | Entered Exiles 1900 | -9/Exiles | Discovered new exit (range 15) 1921 | -9/Exiles | Identified exit to Mines 1951 | -9/Exiles | Met 8R-AWN 1978 | -9/Exiles | Met EX-HEX 2071 | -9/Exiles | Build established: Mutant 2083 | -9/Exiles | Met EX-DEC 2112 | -9/Exiles | Visited The Gauntlet 2305 | -9/Exiles | Learned location of Zion (-6) 2337 | -9/Exiles | Met EX-BIN 2369 | -9/Exiles | Aligned with FarCom system 2371 | -9/Exiles | Given EX-Vault access code 2438 | -9/Exiles | Opened EX-Vault 2449 | -9/Exiles | Found Skeleton Box 2484 | -9/Exiles | Warned to stay clear of 0b10 Research branches 2638 | -9/Exiles | Discovered exit to Mines (range 12) 2841 | -9/Exiles | Left Exiles lab with Skeleton Box 2841 | -9/Exiles | Entered Mines 3107 | -8/Mines | Discovered exit to Materials (range 11) 3123 | -8/Mines | Entered Materials 3123 | -8/Materials | Evolved 2 slots: Utility x2 3514 | -8/Materials | Garrison activated, responded to threat 3589 | -8/Materials | Lost 5 parts (1p2n2w) 3669 | -8/Materials | Core integrity fell below 50% 3678 | -8/Materials | Lost 3 parts (1n2w) 3695 | -8/Materials | Core integrity fell below 20% 3703 | -8/Materials | Destroyed by G-47 Trooper with Particle Gun Last Messages --------------- 03624_ K-01 Serf collects debris. 03643_ Critical hit (Burn: +37). 03643_ Rocket Launcher destroyed. 03645_ Lgt. Assault Rifle destroyed. 03647_ Lgt. Treads destroyed. 03665_ Connecting with Terminal... 03665_ ALERT: Suspicious activity at Terminal M002. Dispatching Investigation squad. 03674_ Critical hit (Burn: +37). 03678_ G-47 Trooper destroyed. 03694_ Destroyed Imp. Heat Sink. 03694_ G-47 Trooper system corrupted by crushing effect. 03696_ G-47 Trooper suffers critical hit (Smash). 03696_ Destroyed Aluminum Leg. 03696_ G-47 Trooper system corrupted by crushing effect. 03697_ G-47 Trooper system terminally corrupted. 03703_ Critical hit (Burn: +37). Map ----- +----------------------------------------------------+ | ????????# # #????? | | ????????####+##### # #????? | | ?????????# ## # """ #????? | | ?????????# ## +!""" #????? | | ?????????# """ ## # """ #????? | | ?????????# """ ## [# #????? | | ?????????# """ ## ########????? | | ?????????# ## #???????????? | | ?????????####+#### ##?########## | | ????????????????## ### ## # | | ????????????#???# #" # | | ????????????# ?### = %% | | ????????????# ##" % | | ????????????# *% # | | ????????"""?# |% # "" " # | | ?????? """ # ! # """""" ## | | ????????? / # """"""" ### | | ????????""" # # """"""" #?? | | ?????????""?# + """"""" #?? | | ????????????## ## ###########?? | | ?????????????# ## ##??????????? | | ??????########+#" !##??????????? | | ??????# ## =%#???????????? | | ??????# "T" ## *#???????????? | | ??????#%g g = ## %#???????????? | | ??????# @* ! ## ############# | | ??#! #;#g#### # o | | ??#! %g | | ???#! g !! """ | | ???##### ! """"?? | | ???????# ###### """"?? | | ???????# ?????? # % """"?? | | ???????# ??????? + % """?? | | ???????# ??????? # | | ???????# ????????# | | ???????# ????????# | | ???????# ????????# ######## | | ???????# ????????# ######??????? | | ???????#?????????# ???????????? | | ?????????????????# ???????????? | | ????????????????? ???????????? | | ????????????????? ???????????? | | ????????????????##### ??????????? | | ????????????????????????????????? | | ????????????????????????????????? | | ????????????????????????????????? | | ????????????????????????????????? | | | | | | | +----------------------------------------------------+ Best States ------------- Heat Dissipation 52 Energy Generation 12 Energy Capacity 265 Matter Stores 300 Matter Capacity 300 Sight Range 16 Terrain Scan Density 10 Evasion (%) 55 Targeting Accuracy 5 Recoil Reduction 3 Offensive Hacking 20 Item Schematics ----------------- None Robot Schematics ------------------ None Fabricated ------------ Nothing Repaired ---------- Nothing Alien Tech Used ----------------- None Achievements -------------- None Challenges ------------ None Game ------ Seed LegInsulatedBattery Manual? 0 Play Time 00:35:12 Cumulative 24.9 hours Start 2025.08.06 @ 21:06:15 End 2025.08.07 @ 07:49:17 Sessions 3 Manual Loads 0 Difficulty Rogue Special Mode None Game No. 39 Rogue 39 Adventurer 0 Explorer 0 Win Type - Total 0 Types 0/0/0/0/0/0/0/0/0/0 Lore% 31 Gallery% 28 Achievement% 27 Wizard Run 0 Options --------- Layout 1 ASCII 0 Keyboard 0 Movement Numpad Keybinds 0 Fullscreen 1 Font 24/Smallcaps Map View 50x35 Zoom Use 0% Tactical HUD 1 Map Filters NONE Filters NONE Steam 1 RUN: b5ec07c7-70f7-4d7d-bb9f-3a208d6100ba